bitfinex/quotes_ETHUSD_20250529
["timestamp","ask_amount","ask_price","bid_price","bid_amount"]
[1748529131608,1.5057,2637.8,2636.6,0.39845266]
[1748529131807,1.5057,2637.8,2636.6,8.39845266]
[1748529132109,1.5057,2637.8,2636.7,0.74667352]
[1748529132297,1.5057,2637.8,2636.8,8.0]
[1748529132612,1.5057,2637.8,2636.8,0.38338209]
[1748529132771,1.5057,2637.8,2636.7,0.74667352]
[1748529134373,1.5057,2637.8,2636.4,11.79303845]
[1748529134569,1.5057,2637.8,2636.5,3.7928426]
[1748529134810,0.55,2637.7,2636.4,8.0]
[1748529135009,1.6607,2637.4,2636.4,0.38273775]
[1748529135181,1.6607,2637.4,2636.5,3.79283254]
[1748529135381,1.6607,2637.4,2636.6,0.41755703]
[1748529135587,1.6607,2637.4,2636.5,3.79290056]
[1748529135787,1.6607,2637.4,2636.4,3.79301503]
[1748529135982,1.6607,2637.4,2636.4,4.18113491]
[1748529136212,1.6607,2637.4,2636.4,0.38811988]
[1748529136516,1.6607,2637.4,2636.1,5.773]
[1748529136712,1.6607,2637.4,2636.4,8.0]
[1748529136917,1.6607,2637.4,2636.3,3.79315785]
[1748529137293,1.6607,2637.4,2636.6,3.79269371]
[1748529137481,1.6607,2637.4,2636.5,11.79282611]
[1748529137824,1.6607,2637.4,2636.5,11.79281899]
[1748529138027,1.6607,2637.4,2636.6,8.0]
[1748529138328,1.6607,2637.4,2636.5,3.79281193]
[1748529138551,1.6607,2637.4,2636.6,3.79270081]
[1748529138841,1.6607,2637.4,2636.5,11.79288465]
[1748529138997,1.6607,2637.4,2636.3,11.79314802]
[1748529139191,1.6607,2637.4,2636.5,8.0]
[1748529139399,1.6607,2637.4,2636.2,8.0]
[1748529139644,1.6607,2637.4,2636.7,8.0]
[1748529139807,1.6607,2637.4,2636.8,3.79236729]
[1748529140004,1.6607,2637.4,2636.6,8.0]
[1748529140005,1.6607,2637.4,2636.9,3.79225562]
[1748529140354,1.6607,2637.4,2637.0,11.79210409]
[1748529140561,1.6607,2637.4,2637.2,11.79188588]
[1748529140695,0.02,2637.9,2637.8,8.0]
[1748529140894,0.02,2638.9,2637.8,11.79096624]
[1748529141206,0.02,2638.9,2637.8,3.791031]
[1748529141407,0.02,2638.9,2638.0,0.84139951]
[1748529141717,0.02,2638.9,2637.8,4.36927203]
[1748529141921,0.02,2638.9,2637.6,4.422]
[1748529142392,0.02,2638.9,2637.1,3.79201443]
[1748529142590,0.55,2638.8,2637.2,9.56083243]
[1748529142806,0.0673796,2638.9,2637.2,9.56083243]
[1748529142807,0.02,2638.9,2637.2,5.769]
[1748529143013,0.3553248,2638.8,2637.4,3.79160985]
[1748529143233,3.85690586,2638.9,2637.3,4.36864246]
[1748529143445,0.35534249,2638.8,2637.4,3.79160167]
[1748529143649,0.55,2638.7,2637.4,0.38612862]
[1748529143932,1.6201,2638.6,2637.4,3.79149237]
[1748529144145,1.6201,2638.2,2637.2,1.348]
[1748529144410,4.05445237,2638.5,2637.2,1.348]
[1748529144411,1.6201,2638.0,2637.2,1.348]
[1748529145308,1.6201,2638.0,2637.2,1.7199395]
[1748529145824,1.6201,2638.0,2637.2,0.3719395]
[1748529146022,1.6201,2638.0,2637.0,3.79211597]
[1748529146241,1.6201,2638.0,2636.8,9.91458307]
[1748529146638,1.6201,2638.0,2637.2,8.0]
[1748529147045,1.6201,2638.0,2637.1,3.79197629]
[1748529147238,1.6201,2638.0,2637.2,3.79188119]
[1748529147440,1.6201,2638.0,2637.2,8.0]
[1748529147641,1.6201,2638.0,2637.4,11.79154439]
[1748529148246,1.6201,2638.0,2637.6,8.0]
[1748529148442,1.6201,2638.0,2637.4,11.79153116]
[1748529148755,1.6201,2638.0,2637.6,8.0]
[1748529149329,1.6201,2638.0,2637.3,4.59167364]
[1748529149536,1.6201,2638.0,2637.0,1.5243]
[1748529149537,1.6201,2638.0,2637.1,8.38012482]
[1748529149855,1.6201,2638.0,2637.1,11.79200698]
[1748529150030,1.6201,2638.0,2637.7,3.79110812]
[1748529150229,1.1201,2638.0,2637.9,3.79089427]
[1748529150417,0.02,2638.9,2637.9,3.79089427]
[1748529150418,0.02,2638.9,2638.0,3.79061845]
[1748529150615,0.02,2638.9,2637.9,8.0]
[1748529150616,0.06737085,2638.9,2637.7,8.0]
[1748529150818,0.02,2638.9,2637.7,11.79106839]
[1748529151352,0.57,2638.9,2637.9,8.0]
[1748529151553,0.57,2638.9,2637.7,3.7910991]
[1748529151753,0.57,2638.9,2637.7,8.0]
[1748529153328,0.55,2638.7,2637.7,8.0]
[1748529153529,1.5211,2638.4,2637.3,8.0]
[1748529153764,1.5211,2638.4,2637.5,8.0]
[1748529154279,1.5211,2638.4,2637.3,8.0]
[1748529154435,1.5211,2638.4,2637.3,11.7916747]
[1748529154618,1.5211,2638.4,2637.5,8.0]
[1748529154967,1.5211,2638.4,2637.7,8.0]
[1748529155178,1.5211,2638.4,2637.6,0.8]
[1748529155643,1.5211,2638.4,2637.7,8.0]
[1748529155966,1.5211,2638.4,2637.6,0.8]
[1748529156478,1.5211,2638.4,2637.7,8.0]
[1748529156820,1.5211,2638.4,2637.7,8.53676422]
[1748529157019,1.5211,2638.4,2638.1,3.79052962]
[1748529157279,1.5211,2638.4,2638.0,11.79063448]
[1748529157579,1.5211,2638.4,2638.3,8.0]
[1748529157738,1.5211,2638.4,2638.3,11.79031952]
[1748529157919,1.6128,2638.8,2638.3,0.8]
[1748529158120,1.6128,2638.8,2638.4,8.0]
[1748529158319,1.6128,2638.8,2638.3,11.79023108]
[1748529158534,1.6128,2638.8,2638.4,3.79015912]
[1748529158745,1.6128,2638.8,2638.3,11.7902495]
[1748529158964,1.6128,2638.8,2637.6,1.91458307]
[1748529159157,1.6128,2638.8,2638.1,3.79059869]
[1748529159859,1.6128,2638.8,2638.1,3.7905847]
[1748529160062,1.6128,2638.8,2637.8,8.0]
[1748529160262,1.6128,2638.8,2637.7,9.69184831]
[1748529160418,1.6613,2638.6,2637.5,3.79141112]
[1748529160618,1.6613,2638.6,2637.7,3.79109296]
[1748529160834,1.6613,2638.6,2637.5,11.79145924]
[1748529161031,1.6613,2638.6,2637.9,8.0]
[1748529161462,1.6613,2638.6,2637.9,3.79082374]
[1748529161635,1.6613,2638.6,2638.0,3.7907043]
[1748529161837,1.6613,2638.6,2638.1,8.0]
[1748529162024,1.6613,2638.6,2638.2,3.79046114]
[1748529162223,1.6613,2638.6,2638.3,8.0]
[1748529162628,1.6613,2638.6,2638.0,3.7907154]
[1748529162629,1.6613,2638.6,2638.1,11.7905409]
[1748529162926,1.6613,2638.6,2637.9,8.0]
[1748529163123,1.6613,2638.6,2637.9,11.79078191]
[1748529163377,1.6613,2638.6,2638.0,3.79067359]
[1748529163586,1.6613,2638.6,2637.9,8.0]
[1748529163741,1.6613,2638.6,2638.2,8.0]
[1748529163942,1.6613,2638.6,2638.2,3.790365]
[1748529164291,1.6613,2638.6,2638.4,3.79017158]
[1748529164432,1.6613,2638.6,2638.4,8.0]
[1748529164777,1.6473,2638.9,2638.4,3.79016347]
[1748529164987,1.6473,2638.9,2638.2,0.3790365]
[1748529165145,1.6473,2638.9,2638.8,8.0]
[1748529165332,0.02,2638.9,2638.8,11.78960133]
[1748529165526,0.02,2638.9,2638.8,8.0]
[1748529166225,0.02,2638.9,2638.8,8.95772772]
[1748529166571,0.02,2638.9,2638.8,12.74732905]
[1748529166922,0.02,2638.9,2638.8,13.12955063]
[1748529167282,4.097134,2638.9,2638.8,9.3399493]
[1748529167572,4.097134,2638.9,2638.8,8.38222158]
[1748529167936,4.097134,2638.9,2638.8,12.17182291]
[1748529168842,4.07990282,2638.9,2638.8,12.17182291]
[1748529169047,3.57990282,2638.9,2638.8,12.17182291]
[1748529170082,3.57990282,2638.9,2638.8,13.73302291]
[1748529170642,3.57990282,2638.9,2638.8,15.6455608]
[1748529171172,3.57990282,2638.9,2638.8,1.94342158]
[1748529171343,5.22050282,2638.9,2638.8,0.38222158]
[1748529171683,3.57990282,2638.9,2638.3,21.79028046]
[1748529171903,3.57990282,2638.9,2638.2,1.6663]
[1748529171904,3.57990282,2638.9,2638.8,3.78960133]
[1748529172042,3.57990282,2638.9,2638.8,17.85620133]
[1748529172243,3.57990282,2638.9,2638.8,20.15456804]
[1748529172950,3.57990282,2638.9,2638.8,18.24203015]
[1748529173146,3.42249423,2638.9,2638.8,34.49835304]
[1748529173347,0.94643317,2638.9,2638.8,25.31847204]
[1748529173579,0.94643317,2638.9,2638.8,23.21002204]
[1748529173803,1.5446,2639.9,2638.8,23.76002204]
[1748529174083,1.5446,2639.9,2639.5,8.0]
[1748529174084,0.02,2639.9,2639.5,8.0]
[1748529174284,0.02,2639.9,2639.8,3.78816577]
[1748529175686,0.02,2639.9,2639.7,11.78824958]
[1748529175891,0.02,2639.9,2639.8,5.736]
[1748529176100,0.02,2639.9,2639.8,8.0]
[1748529176977,0.02,2639.9,2639.8,11.78816577]
[1748529177663,0.02,2639.9,2639.8,8.0]
[1748529178385,0.02,2639.9,2639.0,1.5044]
[1748529178386,1.5554,2639.9,2639.0,1.5044]
[1748529178692,1.5554,2639.9,2639.8,3.78816577]
[1748529178891,1.5554,2639.9,2639.4,1.91253789]
[1748529179075,1.5554,2639.9,2639.4,4.397]
[1748529179275,1.5554,2639.9,2638.9,1.5631]
[1748529179463,1.5554,2639.9,2638.8,8.56782882]
[1748529179662,1.5554,2639.9,2639.1,3.78908085]
[1748529179910,1.5554,2639.9,2639.2,8.0]
[1748529180216,1.5554,2639.9,2639.0,16.18623446]
[1748529180518,1.5049,2639.7,2638.8,8.56782882]
[1748529180712,1.5049,2639.6,2638.9,8.0]
[1748529181026,1.5049,2639.6,2638.8,12.3573533]
[1748529181168,1.5049,2639.6,2638.8,8.56782882]
[1748529181368,1.5049,2639.6,2638.9,8.0]
[1748529182315,1.5049,2639.6,2638.8,8.38582882]
[1748529182620,1.6081,2639.4,2638.8,0.38582882]
[1748529182768,1.82391,2639.4,2638.4,1.325]
[1748529182973,1.82391,2639.4,2638.4,1.69725784]
[1748529183207,1.5832,2639.3,2638.4,1.69725784]
[1748529183669,1.5832,2639.3,2638.3,3.79030849]
[1748529184069,1.5832,2639.3,2638.6,8.0]
[1748529184285,1.5832,2639.3,2638.5,8.0]
[1748529184485,1.818101,2639.3,2638.5,3.78998765]
[1748529184968,1.818101,2639.3,2638.7,11.78965673]
[1748529185173,1.5832,2639.3,2638.4,0.38357854]
[1748529185384,1.5832,2639.3,2638.9,11.78942635]
[1748529185621,1.5377,2639.8,2639.2,3.78902697]
[1748529185772,1.5377,2639.8,2639.4,8.0]
[1748529185969,1.5377,2639.8,2639.4,11.7887294]
[1748529186213,1.5377,2639.8,2639.3,8.0]
[1748529186413,0.02,2639.9,2639.7,3.78830927]
[1748529186574,0.02,2639.9,2639.8,11.78816577]
[1748529187378,0.02,2639.9,2639.5,8.0]
[1748529187578,0.02,2639.9,2639.8,3.78816577]
[1748529187970,0.02,2639.9,2639.8,11.78816577]
[1748529189573,0.02,2639.9,2639.8,8.38576195]
[1748529189985,0.02,2639.9,2639.8,12.17392772]
[1748529190802,0.02,2639.9,2639.8,14.88392772]
[1748529191019,0.02,2640.9,2640.8,3.78673129]
[1748529191220,1.5411,2641.6,2640.9,8.0]
[1748529191438,1.5411,2641.6,2641.4,3.78580053]
[1748529191597,1.5411,2641.6,2641.3,3.78601446]
[1748529191793,1.5621,2642.0,2641.5,3.7857278]
[1748529192022,1.5621,2642.0,2641.6,3.78550604]
[1748529192243,1.5621,2642.0,2641.3,8.0]
[1748529192442,1.5621,2642.0,2641.3,11.78593477]
[1748529193102,1.5621,2642.0,2641.3,3.78599288]
[1748529193297,1.5621,2642.0,2641.3,0.37695775]
[1748529193546,1.5621,2642.0,2641.2,11.96744703]
[1748529193691,1.5621,2642.0,2641.3,3.78600776]
[1748529194245,1.5621,2642.0,2641.3,3.78597855]
[1748529194538,1.5621,2642.0,2641.8,11.7852979]
[1748529194876,1.5621,2642.0,2641.5,8.0]
[1748529195159,1.5621,2642.0,2641.4,8.0]
[1748529195360,1.5621,2642.0,2641.4,9.325]
[1748529195563,1.5621,2642.0,2641.3,0.38774744]
[1748529195761,1.5621,2642.0,2641.4,8.0]
[1748529195924,1.5621,2642.0,2641.4,11.7857989]
[1748529196259,1.5621,2642.0,2641.4,8.0]
[1748529196557,1.5621,2642.0,2641.3,0.37351262]
[1748529196762,1.5621,2642.0,2641.2,0.17862799]
[1748529196763,1.5621,2642.0,2641.2,8.0]
[1748529196927,1.5621,2642.0,2641.4,8.0]
[1748529197123,1.5621,2642.0,2641.2,11.78609776]
[1748529197349,1.5621,2642.0,2641.2,8.18134692]
[1748529197556,1.5621,2642.0,2641.2,11.96744005]
[1748529198129,1.5621,2642.0,2641.2,0.56194291]
[1748529198325,1.5621,2642.0,2641.7,3.78542201]
[1748529198652,0.66666667,2642.6,2641.8,11.7852979]
[1748529198653,1.6278,2642.3,2641.8,11.7852979]
[1748529199027,1.6278,2642.3,2641.8,8.0]
[1748529199426,1.6278,2642.3,2641.8,11.7852979]
[1748529199831,1.6278,2642.3,2641.8,8.0]
[1748529200032,1.6278,2642.3,2641.4,5.34101802]
[1748529200237,1.6278,2642.3,2641.4,8.0]
[1748529201033,1.6278,2642.3,2641.2,4.9404987]
[1748529201239,1.6278,2642.3,2641.0,13.707]
[1748529201555,1.6278,2642.3,2641.2,8.0]
[1748529202076,1.6278,2642.3,2641.1,8.51105619]
[1748529202408,1.609,2641.9,2641.1,0.89433856]
[1748529202675,1.609,2641.9,2641.1,3.78623184]
[1748529202848,1.609,2641.9,2641.1,8.0]
[1748529203056,1.609,2641.9,2641.1,0.37170444]
[1748529203057,1.609,2641.7,2641.1,0.37170444]
[1748529203252,1.5746,2641.5,2640.4,1.552]
[1748529203466,1.5746,2641.5,2640.6,8.0]
[1748529203778,1.5746,2641.5,2640.5,0.5934]
[1748529204139,1.5746,2641.5,2640.7,9.90904257]
[1748529204343,1.5746,2641.5,2641.2,8.0]
[1748529204583,1.5746,2641.5,2640.8,11.78663702]
[1748529204759,1.5746,2641.5,2640.9,8.0]
[1748529205075,1.5746,2641.5,2640.8,0.19090426]
[1748529205249,1.5746,2641.5,2640.5,9.16322481]
[1748529205455,1.5746,2641.5,2640.5,5.54322481]
[1748529205852,1.5746,2641.5,2640.6,8.0]
[1748529206185,1.5151,2641.3,2640.5,0.38415261]
[1748529206536,1.5151,2641.3,2640.1,0.02]
[1748529206736,1.5151,2641.3,2640.4,3.78722366]
[1748529206977,1.5151,2641.3,2640.4,0.18171126]
[1748529207179,1.5151,2641.3,2640.3,3.787437]
[1748529207338,1.5151,2641.3,2640.3,4.54685853]
[1748529207538,1.5151,2641.3,2640.3,0.75950111]
[1748529207738,1.5151,2641.3,2640.2,0.3794163]
[1748529207980,0.55,2641.4,2640.1,0.02]
[1748529208165,1.6658,2640.9,2640.1,0.02]
[1748529208568,1.5559,2640.7,2640.1,0.39177197]
[1748529208864,1.5559,2640.5,2640.1,0.02]
[1748529209377,1.5559,2640.5,2640.2,8.0]
[1748529209583,1.5559,2640.5,2640.2,3.7875742]
[1748529209888,1.5559,2640.5,2640.1,0.02]
[1748529209889,1.5559,2640.5,2640.1,0.40240794]
[1748529211418,1.5559,2640.5,2640.1,8.40240794]
[1748529211574,1.5559,2640.5,2640.2,0.85858892]
[1748529211757,1.5559,2640.5,2640.1,8.40240794]
[1748529212158,1.5559,2640.5,2640.1,0.40240794]
[1748529213160,1.6475,2641.3,2640.4,3.78730495]
[1748529213377,1.6475,2641.3,2640.3,8.0]
[1748529213378,1.6475,2641.3,2640.3,3.78744305]
[1748529213625,4.377,2642.0,2640.1,3.83915051]
[1748529213626,0.04732681,2641.2,2640.1,0.40240794]
[1748529213802,1.61,2641.2,2640.1,0.40240794]
[1748529214181,0.55,2641.3,2640.1,0.40240794]
[1748529214526,0.55,2640.9,2640.1,0.40240794]
[1748529214818,2.0551,2640.2,2640.1,0.40240794]
[1748529215018,2.26061,2640.2,2640.1,0.40240794]
[1748529215240,6.04820184,2640.2,2640.1,0.40240794]
[1748529215522,1.5331,2640.0,2639.1,0.02]
[1748529215688,1.5331,2639.8,2639.1,0.02]
[1748529216699,1.5331,2639.8,2639.1,0.39907749]
[1748529216898,1.74141,2639.8,2639.1,0.02]
[1748529219029,1.5331,2639.8,2639.3,3.78880451]
[1748529219328,1.5955,2640.5,2639.6,1.90904257]
[1748529219510,1.5955,2640.5,2639.8,3.78812282]
[1748529219843,1.5955,2640.5,2639.7,3.78830927]
[1748529220057,1.5955,2640.5,2640.1,3.78761193]
[1748529220196,1.5955,2640.5,2640.1,3.78770043]
[1748529220401,1.315,2641.5,2640.2,3.78758355]
[1748529220402,1.5404,2641.4,2640.2,3.78758355]
[1748529220600,1.5404,2641.4,2640.2,3.78756683]
[1748529220844,1.5404,2641.4,2639.9,5.4268302]
[1748529221041,1.5404,2641.2,2639.7,1.315]
[1748529221268,1.5404,2641.0,2639.9,3.78802227]
[1748529221568,1.5404,2641.0,2639.8,3.78816577]
[1748529222103,1.5404,2641.0,2639.9,3.78802126]
[1748529222303,1.5404,2641.0,2639.8,3.78816577]
[1748529222729,1.5404,2641.0,2640.0,3.78787229]
[1748529222948,1.5404,2641.0,2639.8,3.78809485]
[1748529223146,1.5404,2641.0,2639.9,0.88913574]
[1748529223306,1.4904,2641.0,2639.9,0.88913574]
[1748529223507,1.4904,2641.0,2639.9,3.78795771]
[1748529223751,1.4904,2641.0,2639.8,3.78816577]
[1748529223948,1.4904,2641.0,2640.1,3.78761939]
[1748529224243,1.4904,2641.0,2639.9,3.78798474]
[1748529224449,1.4904,2641.0,2640.0,4.16662795]
[1748529224616,1.4904,2641.0,2639.7,8.0]
[1748529224946,1.4904,2641.0,2639.8,3.78813367]
[1748529225183,1.4904,2641.0,2640.0,3.78787726]
[1748529225489,1.4904,2641.0,2639.9,8.0]
[1748529225786,1.4904,2641.0,2640.2,3.78751314]
[1748529225985,1.4904,2641.0,2640.2,12.54503589]
[1748529226686,1.4904,2641.0,2640.0,3.78779501]
[1748529226989,1.4904,2641.0,2640.0,8.0]
[1748529227160,1.4904,2641.0,2640.2,8.0]
[1748529227357,1.4904,2641.0,2640.2,11.78756395]
[1748529227558,1.4904,2641.0,2640.2,11.78751857]
[1748529227888,1.4904,2641.0,2639.9,8.0]
[1748529228251,0.55,2640.6,2638.0,1.75308887]
[1748529228450,5.36774245,2639.4,2638.0,0.19738887]
[1748529228652,1.6306,2639.2,2637.7,0.0436]
[1748529228895,15.23245897,2639.2,2639.1,0.02]
[1748529229064,15.23245897,2639.2,2637.7,0.0436]
[1748529229065,3.78945989,2638.9,2637.7,0.0436]
[1748529229268,2.95866,2639.2,2637.7,0.0436]
[1748529229269,1.90904257,2639.0,2637.7,0.0436]
[1748529229470,3.79046319,2638.2,2637.7,0.0436]
[1748529229676,3.79046319,2638.2,2635.9,1.87908655]
[1748529229677,1.5278,2637.8,2636.3,1.90904257]
[1748529229852,1.5278,2637.8,2636.4,0.19090426]
[1748529230054,1.5278,2637.8,2636.4,0.56525604]
[1748529230303,1.5278,2637.8,2636.5,8.0]
[1748529230506,1.5278,2637.8,2636.4,3.9838211]
[1748529230796,1.5278,2637.8,2636.4,3.98390779]
[1748529231000,1.5278,2637.8,2636.5,0.39839078]
[1748529231353,1.5278,2637.8,2636.2,3.79333889]
[1748529231552,1.5278,2637.8,2636.2,0.37843975]
[1748529231795,1.68659475,2637.7,2636.0,1.82590026]
[1748529232103,1.6392,2637.5,2635.8,2.08975891]
[1748529232308,1.643,2637.4,2635.8,0.19733745]
[1748529232610,0.04740191,2637.3,2635.9,3.79368233]
[1748529232823,1.643,2637.2,2635.7,9.494]
[1748529233121,1.643,2637.2,2636.0,3.79357189]
[1748529233277,1.643,2637.2,2635.9,11.79371194]
[1748529233463,1.643,2637.2,2636.0,3.79357463]
[1748529233668,1.643,2637.2,2635.9,3.97410495]
[1748529233891,1.643,2637.2,2635.9,0.18038971]
[1748529234161,1.643,2637.2,2636.4,8.0]
[1748529234366,1.643,2637.2,2636.1,3.79336934]
[1748529234367,1.643,2637.2,2636.1,0.55]
[1748529234590,1.643,2637.2,2636.4,8.0]
[1748529235288,1.643,2637.2,2636.0,1.90904257]
[1748529235490,1.643,2637.2,2636.2,8.55]
[1748529235665,1.643,2637.2,2636.5,11.7928661]
[1748529235865,1.643,2637.2,2636.4,11.79299534]
[1748529236161,1.643,2637.2,2636.3,8.0]
[1748529236363,1.643,2637.2,2636.1,8.0]
[1748529236564,1.643,2637.2,2636.1,0.55]
[1748529236896,1.643,2637.2,2636.1,4.34343983]
[1748529237094,1.4283,2637.2,2635.9,8.18551136]
[1748529237410,1.4283,2637.2,2635.9,0.18551136]
[1748529237623,1.4283,2637.2,2635.8,13.68633135]
[1748529237980,1.4283,2637.2,2635.8,9.89242146]
[1748529238512,1.4283,2637.2,2635.8,1.89242146]
[1748529238693,0.0474117,2637.1,2635.8,1.89242146]
[1748529239077,0.0474117,2637.1,2635.7,3.5576816]
[1748529239344,0.55,2637.0,2635.7,2.43005397]
[1748529239831,4.23129283,2636.9,2635.7,2.2426816]
[1748529240030,1.6236,2636.8,2635.7,2.2426816]
[1748529240861,1.6236,2636.6,2635.7,0.37836405]
[1748529241021,1.6236,2636.6,2635.2,1.81969455]
[1748529241207,1.6236,2636.6,2635.4,11.72010348]
[1748529241548,1.6236,2636.6,2635.6,0.55]
[1748529241752,1.6236,2636.6,2635.7,8.0]
[1748529242043,1.6236,2636.6,2635.5,1.5141]
[1748529242247,1.6236,2636.6,2635.9,3.79377062]
[1748529242555,1.6236,2636.6,2636.2,3.79328975]
[1748529242556,1.4114,2636.6,2636.2,3.79328975]
[1748529242760,5.687,2637.8,2636.2,3.79328975]
[1748529242761,1.311,2637.8,2636.6,3.79263001]
[1748529242927,1.311,2637.8,2636.7,8.0]
[1748529243127,0.31751951,2637.7,2636.4,0.55]
[1748529243315,0.31751951,2637.7,2636.7,8.0]
[1748529243516,0.31751951,2637.7,2636.4,12.34304263]
[1748529243825,0.31751951,2637.7,2636.5,0.95743524]
[1748529244028,0.31751951,2637.7,2636.6,3.79266028]
[1748529244228,0.31751951,2637.7,2636.5,8.95743524]
[1748529244229,0.31751951,2637.7,2636.7,3.79261115]
[1748529244430,0.31751951,2637.7,2636.7,3.79253342]
[1748529244633,0.31751951,2637.7,2636.5,0.95743524]
[1748529244953,0.2084451,2638.1,2637.1,3.79202886]
[1748529245117,0.2084451,2638.1,2637.3,8.0]
[1748529245513,0.2084451,2638.1,2637.2,11.79181914]
[1748529245717,1.6094,2637.8,2637.2,3.79178124]
[1748529245913,1.6094,2637.8,2637.4,8.0]
[1748529246357,1.6094,2637.8,2637.2,12.74930366]
[1748529246528,1.6094,2637.8,2637.4,8.0]
[1748529246729,1.6094,2637.8,2637.4,0.38368967]
[1748529246948,1.6094,2637.8,2637.1,8.0]
[1748529247220,1.6094,2637.8,2636.9,8.0]
[1748529247432,1.6094,2637.8,2637.1,8.0]
[1748529247646,1.6094,2637.8,2636.8,3.79244476]
[1748529247647,1.6094,2637.8,2636.9,11.792273]
[1748529247849,1.6094,2637.8,2636.9,12.17171757]
[1748529248047,1.6094,2637.8,2636.9,0.92944457]
[1748529248280,1.6094,2637.8,2636.9,0.37944457]
[1748529248584,0.02,2638.9,2636.6,10.38079769]
[1748529248585,0.02,2638.9,2637.8,0.55]
[1748529248750,0.02,2638.9,2638.0,0.55]
[1748529248950,0.02,2638.9,2638.0,0.3799373]
[1748529249262,0.02,2638.9,2637.9,0.24590426]
[1748529249973,0.02,2638.9,2638.2,8.0]
[1748529250196,0.02,2638.9,2638.0,8.0]
[1748529250399,0.02,2638.9,2638.0,0.37288739]
[1748529250696,0.02,2638.9,2637.5,8.0]
[1748529250899,0.02,2638.9,2637.5,3.7914085]
[1748529251058,0.02,2638.9,2637.7,8.0]
[1748529251410,1.628,2638.8,2637.2,2.9349]
[1748529251569,1.628,2638.8,2637.5,0.55]
[1748529251771,1.4153,2638.8,2638.1,1.5994]
[1748529251985,1.4153,2638.8,2638.4,3.7901008]
[1748529252201,1.2304,2638.8,2638.2,4.00540122]
[1748529252370,1.2304,2638.8,2638.2,0.21494]
[1748529252570,1.2304,2638.8,2638.4,8.0]
[1748529252779,1.2304,2638.8,2638.4,11.79013907]
[1748529252962,1.0696,2638.8,2638.3,11.79026095]
[1748529253161,1.0696,2638.8,2638.2,8.0]
[1748529253358,1.0696,2638.8,2637.9,0.55]
[1748529253696,1.0696,2638.8,2638.0,0.21997]
[1748529253870,1.0696,2638.8,2638.2,3.79038567]
[1748529254075,1.0696,2638.8,2638.1,8.0]
[1748529254259,1.0696,2638.8,2638.0,0.21997]
[1748529254461,1.0696,2638.8,2637.5,3.79146779]
[1748529254701,1.0696,2638.8,2637.9,8.0]
[1748529255225,1.0696,2638.8,2637.6,9.90904257]
[1748529255407,1.0696,2638.8,2638.1,8.0]
[1748529255719,1.0696,2638.8,2638.0,11.79068587]
[1748529255919,1.0696,2638.8,2637.9,0.55]
[1748529256094,1.0696,2638.8,2638.0,8.0]
[1748529256437,1.0696,2638.8,2638.3,8.0]
[1748529256594,1.0696,2638.8,2637.7,0.55]
[1748529256924,1.0696,2638.8,2638.2,3.79045918]
[1748529257126,1.0696,2638.8,2638.0,8.0]
[1748529257419,1.0696,2638.8,2637.9,12.34082497]
[1748529257623,1.0696,2638.8,2638.0,3.79075056]
[1748529257829,1.0696,2638.8,2637.9,8.55]
[1748529258034,1.0696,2638.8,2637.6,9.90904257]
[1748529258216,1.0696,2638.8,2637.5,8.0]
[1748529258415,1.0696,2638.8,2637.5,11.79136126]
[1748529258618,1.0696,2638.8,2638.1,8.0]
[1748529258803,1.0696,2638.8,2637.6,2.45904257]
[1748529258998,1.0696,2638.8,2637.8,11.79091861]
[1748529259198,1.0696,2638.8,2637.9,3.79087905]
[1748529259433,1.0696,2638.8,2637.8,3.79102812]
[1748529259634,1.0696,2638.8,2638.0,11.79072331]
[1748529259840,1.0696,2638.8,2638.0,3.79070272]
[1748529259993,1.0696,2638.8,2637.7,8.0]
[1748529260199,1.0696,2638.8,2638.7,8.0]
[1748529260398,1.0696,2638.8,2638.6,3.78987835]
[1748529260399,0.02,2638.9,2638.6,8.0]
[1748529260623,0.02,2638.9,2638.5,8.0]
[1748529260939,0.02,2638.9,2638.4,11.79006352]
[1748529261120,0.02,2638.9,2638.5,0.37901202]
[1748529261522,0.02,2638.9,2637.8,2.1842]
[1748529261523,0.02,2638.9,2638.1,0.55]
[1748529261833,0.02,2638.9,2638.4,11.79010424]
[1748529262032,0.02,2638.9,2638.5,8.0]
[1748529262241,0.02,2638.9,2638.1,0.55]
[1748529262425,0.02,2638.9,2638.2,8.0]
[1748529262611,0.02,2638.9,2638.2,3.79045259]
[1748529263252,0.02,2638.9,2638.1,0.55]
[1748529263553,0.02,2638.9,2638.1,4.34050537]
[1748529263751,0.02,2638.9,2638.3,11.79028929]
[1748529263910,0.02,2638.9,2638.2,3.79039811]
[1748529264116,0.02,2638.9,2638.3,11.79024515]
[1748529264311,0.02,2638.9,2638.2,4.60355997]
[1748529264507,0.02,2638.9,2638.2,0.81310621]
[1748529264711,0.02,2638.9,2638.2,3.79045725]
[1748529264953,0.02,2638.9,2637.9,8.0]
[1748529265137,1.5097,2638.8,2637.9,0.55]
[1748529265332,1.5097,2638.8,2638.2,8.0]
[1748529265614,1.5097,2638.8,2638.0,0.55]
[1748529265921,1.5097,2638.8,2638.1,8.0]
[1748529266213,1.5097,2638.8,2637.5,1.5212]
[1748529266418,1.5097,2638.8,2637.5,4.26546252]
[1748529266723,1.5097,2638.8,2637.7,8.0]
[1748529266936,1.5097,2638.8,2637.2,0.3711562]
[1748529267145,0.02,2638.9,2636.7,1.88222238]
[1748529267146,3.83723277,2638.7,2636.7,1.88222238]
[1748529267460,1.5054,2638.5,2637.0,3.79208822]
[1748529267610,1.5054,2638.5,2637.1,8.0]
[1748529267809,1.35738643,2638.4,2636.8,0.34214224]